fUST/lending_fUST_20240621
["ID","MTS","AMOUNT","RATE_DAILY","PERIOD"]
[330023508,1718946642303,-500.0,0.00054876,120]
[330023509,1718946642313,-1340.55,0.00054876,120]
[330023510,1718946642323,-1930.1,0.00054876,120]
[330023511,1718946642332,-2279.93,0.00054876,120]
[330023512,1718946642343,-500.0,0.00054876,120]
[330023513,1718946642352,-500.0,0.00054876,120]
[330023514,1718946642362,-500.0,0.00054876,120]
[330023515,1718946642370,-1294.55,0.00054876,120]
[330023516,1718946642379,-500.0,0.00054876,120]
[330023517,1718946642388,-151.530738,0.00054876,120]
[330023518,1718946642397,-151.0,0.00054876,120]
[330023519,1718946642406,-518.95929642,0.00054876,120]
[330023520,1718946642415,-500.21248622,0.00054876,120]
[330023521,1718946642424,-500.0,0.00054876,120]
[330023522,1718946642434,-748.78,0.00054876,120]
[330023523,1718946642443,-500.0,0.00054876,120]
[330023524,1718946642452,-151.0,0.00054876,120]
[330023525,1718946642478,-500.0,0.00054876,7]
[330023526,1718946642487,-500.0,0.00054876,120]
[330023527,1718946642497,-500.0,0.00054876,120]
[330023528,1718946642510,-835.7,0.00054876,120]
[330023529,1718946642519,-151.0,0.00054876,120]
[330023530,1718946642528,-151.0,0.00054876,120]
[330023531,1718946642537,-500.0,0.00054876,120]
[330023532,1718946642547,-2000.0,0.00054876,5]
[330023533,1718946642556,-151.0,0.00054876,120]
[330023534,1718946642565,-500.0,0.00054876,120]
[330023536,1718946642574,-500.0,0.00054876,120]
[330023538,1718946642584,-910.95,0.00054876,120]
[330023539,1718946642595,-500.0,0.00054876,120]
[330023540,1718946642605,-500.0,0.00054876,120]
[330023541,1718946642614,-396.45864905,0.00054876,120]
[330023542,1718946642623,-500.0,0.00054876,120]
[330023543,1718946642632,-1000.0,0.00054876,10]
[330023544,1718946642642,-1000.0,0.00054876,10]
[330023546,1718946642651,-1000.0,0.00054876,10]
[330023547,1718946642660,-500.0,0.00054876,120]
[330023548,1718946642669,-1000.0,0.00054876,10]
[330023549,1718946642678,-1000.0,0.00054876,10]
[330023550,1718946642687,-1000.0,0.00054876,10]
[330023551,1718946642696,-1000.0,0.00054876,10]
[330023552,1718946642705,-500.0,0.00054876,120]
[330023553,1718946642714,-1000.0,0.00054876,10]
[330023554,1718946642723,-1000.0,0.00054876,10]
[330023555,1718946642732,-1000.0,0.00054876,10]
[330023556,1718946642741,-1000.0,0.00054876,10]
[330023558,1718946642751,-1000.0,0.00054876,10]
[330023561,1718946642761,-1000.0,0.00054876,10]
[330023562,1718946642769,-1000.0,0.00054876,10]
[330023563,1718946642779,-1000.0,0.00054876,10]
[330023565,1718946642788,-1000.0,0.00054876,10]
[330023567,1718946642798,-1000.0,0.00054876,10]
[330023569,1718946642807,-1000.0,0.00054876,10]
[330023571,1718946642816,-1000.0,0.00054876,10]
[330023573,1718946642825,-1000.0,0.00054876,10]
[330023575,1718946642834,-1000.0,0.00054876,10]
[330023577,1718946642847,-1000.0,0.00054876,10]
[330023579,1718946642856,-1000.0,0.00054876,10]
[330023580,1718946642866,-1000.0,0.00054876,10]
[330023581,1718946642876,-1000.0,0.00054876,10]
[330023582,1718946642885,-1000.0,0.00054876,10]
[330023583,1718946642895,-1000.0,0.00054876,10]
[330023584,1718946642904,-1000.0,0.00054876,10]
[330023585,1718946642914,-1000.0,0.00054876,10]
[330023586,1718946642924,-1000.0,0.00054876,10]
[330023587,1718946642933,-1000.0,0.00054876,10]
[330023588,1718946642943,-1000.0,0.00054876,10]
[330023589,1718946642952,-1000.0,0.00054876,10]
[330023590,1718946642961,-1000.0,0.00054876,10]
[330023591,1718946642970,-1000.0,0.00054876,10]
[330023592,1718946642980,-1000.0,0.00054876,10]
[330023593,1718946642989,-1000.0,0.00054876,10]
[330023594,1718946642998,-1000.0,0.00054876,10]
[330023595,1718946643007,-1000.0,0.00054876,10]
[330023596,1718946643016,-2269.48,0.00054876,120]
[330023597,1718946643026,-1000.0,0.00054876,10]
[330023598,1718946643035,-1000.0,0.00054876,10]
[330023599,1718946643045,-1000.0,0.00054876,10]
[330023600,1718946643054,-500.0,0.00054876,120]
[330023601,1718946643063,-534.220691,0.00054876,10]
[330023602,1718946643072,-500.0,0.00054876,2]
[330023603,1718946643081,-498.0,0.00054876,120]
[330023604,1718946643091,-504.46054982,0.00054876,7]
[330023605,1718946643102,-1504.74,0.00054876,120]
[330023606,1718946643111,-500.0,0.00054876,120]
[330023607,1718946643120,-500.0,0.00054876,120]
[330023608,1718946643129,-5631.83,0.00054876,120]
[330023609,1718946643139,-546.02,0.00054876,120]
[330023610,1718946643148,-2639.21,0.00054876,120]
[330023611,1718946643158,-1632.87,0.00054876,120]
[330023612,1718946643167,-500.0,0.00054876,120]
[330023613,1718946643176,-500.0,0.00054876,120]
[330023614,1718946643185,-1567.2,0.00054876,120]
[330023615,1718946643194,-9585.29442869,0.00054876,120]
[330023616,1718946643565,-678.95793225,0.00054876,120]
[330023617,1718946643579,-17971.96092692,0.00054876,120]
[330023619,1718946646515,-893.73484274,0.00054876,120]
[330023620,1718946741026,166.2,0.00021096,2]
[330023624,1718947489726,150.0,0.00017192,2]
[330023625,1718947513367,315.52793308,0.00017192,2]
[330023626,1718947513396,344.47206692,0.00017192,2]
[330023627,1718947533159,-199.258817,0.00043917,2]
[330023628,1718947625152,-302.52677514,0.00025,2]
[330023629,1718947625172,-547.90876669,0.00043917,2]
[330023630,1718947630227,-6486.00066048,0.00043917,2]
[330023632,1718947750150,-150.0,0.00041817,2]
[330023633,1718947750316,-1165.83948773,0.00043817,2]
[330023634,1718947750347,-15973.80236453,0.00043917,2]
[330023635,1718947750366,-166.647942,0.00045689,2]
[330023636,1718947750386,-88.88120574,0.00046817,2]
[330023637,1718947750422,-61.11879426,0.00046817,2]
[330023638,1718947801451,-481.72793308,0.00051,30]
[330023639,1718947801686,-224.21725921,0.00051,30]
[330023690,1718947833655,-7216.30321092,0.00051,30]
[330023693,1718947833667,-305.84891193,0.00051,30]
[330023771,1718947834605,5000.0,0.00043,4]
[330023859,1718947838862,-4036.91135218,0.00051,30]
[330023860,1718947838876,-37781.02981268,0.00051,30]
[330023861,1718947838892,-998.32935741,0.000529,28]
[330023862,1718947838902,-500.0,0.00053,4]
[330023863,1718947838911,-175.66986974,0.0005404,4]
[330023864,1718947838922,-500.0,0.00054041,120]
[330023865,1718947838932,-8258.195999,0.000543,120]
[330023866,1718947838942,-335.3,0.00054637,90]
[330023867,1718947838952,-976.46,0.00054784,3]
[330023868,1718947838964,-1524.59,0.00054784,3]
[330023869,1718947838973,-500.0,0.00054793,20]
[330023870,1718947838983,-585.78,0.00054793,30]
[330023871,1718947838992,-500.0,0.00054793,120]
[330023872,1718947839002,-500.0,0.00054793,120]
[330023873,1718947839011,-500.0,0.00054793,120]
[330023874,1718947839021,-500.0,0.00054793,120]
[330023875,1718947839030,-500.0,0.00054793,120]
[330023876,1718947839041,-500.95870007,0.00054794,120]
[330023877,1718947839051,-512.38342574,0.00054794,120]
[330023878,1718947839061,-500.0,0.00054794,120]
[330023879,1718947839071,-500.0,0.00054794,120]
[330023880,1718947839081,-500.0,0.00054794,120]
[330023881,1718947839091,-500.0,0.00054794,120]
[330023882,1718947839102,-500.0,0.00054794,120]
[330023883,1718947839112,-503.70946691,0.00054794,15]
[330023884,1718947839123,-500.0,0.00054794,120]
[330023885,1718947839133,-500.0,0.00054794,120]
[330023886,1718947839145,-603.44116103,0.00054794,120]
[330023887,1718947839156,-500.0,0.00054794,120]
[330023888,1718947839166,-500.0,0.00054794,120]
[330023889,1718947839177,-1228.83,0.00054794,120]
[330023890,1718947839187,-549.26,0.00054794,120]
[330023891,1718947839197,-500.0,0.00054794,120]
[330023892,1718947839207,-872.03,0.00054794,120]
[330023893,1718947839218,-1005.85,0.00054794,120]
[330023894,1718947839228,-1000.0,0.00054794,14]
[330023895,1718947839238,-253.2050937,0.00054794,120]
[330023896,1718947839248,-500.0,0.00054794,120]
[330023897,1718947839259,-500.0,0.00054794,120]
[330023898,1718947839269,-500.0,0.00054794,120]
[330023899,1718947839280,-500.0,0.00054794,120]
[330023900,1718947839291,-500.0,0.00054794,120]
[330023901,1718947839301,-502.42482889,0.00054794,120]
[330023902,1718947839311,-500.0,0.00054794,120]
[330023903,1718947839322,-500.0,0.00054794,120]
[330023904,1718947839331,-500.0,0.00054794,2]
[330023905,1718947839342,-686.38,0.00054794,120]
[330023906,1718947839353,-500.0,0.00054794,120]
[330023907,1718947839363,-500.0,0.00054794,120]
[330023908,1718947839373,-500.0,0.00054794,120]
[330023909,1718947839383,-500.0,0.00054794,120]
[330023910,1718947839393,-503.68745547,0.00054794,120]
[330023911,1718947839403,-350.42433756,0.00054794,30]
[330023912,1718947839413,-500.0,0.00054794,120]
[330023913,1718947839423,-500.0,0.00054794,120]
[330023914,1718947839433,-881.19,0.00054794,120]
[330023915,1718947839444,-560.7,0.00054794,120]
[330023916,1718947839454,-500.0,0.00054794,120]
[330023917,1718947839464,-500.67278414,0.00054794,20]
[330023918,1718947839474,-500.0,0.00054794,120]
[330023919,1718947839483,-500.0,0.00054794,120]
[330023920,1718947839494,-504.46054982,0.00054794,7]
[330023921,1718947839504,-500.0,0.00054794,120]
[330023922,1718947839514,-500.0,0.00054794,120]
[330023923,1718947839524,-162.03510453,0.00054794,120]
[330023924,1718947839533,-500.0,0.00054794,120]
[330023925,1718947839543,-2000.0,0.00054794,5]
[330023926,1718947839552,-500.0,0.00054794,120]
[330023928,1718947839562,-500.0,0.00054794,120]
[330023929,1718947839571,-500.0,0.00054794,120]
[330023930,1718947839581,-500.0,0.00054794,120]
[330023931,1718947839591,-649.26936256,0.00054794,120]
[330023932,1718947839601,-500.0,0.00054794,120]
[330023933,1718947839721,-566.09,0.00054794,120]
[330023934,1718947839731,-500.0,0.00054794,120]
[330023935,1718947839741,-500.0,0.00054794,120]
[330023936,1718947839752,-1161.97,0.00054794,120]
[330023937,1718947839762,-500.26875524,0.00054794,7]
[330023938,1718947839772,-500.0,0.00054794,120]
[330023939,1718947839781,-500.0,0.00054794,120]
[330023940,1718947839791,-500.0,0.00054794,120]
[330023941,1718947839801,-500.0,0.00054794,120]
[330023942,1718947839811,-502.54576136,0.00054794,120]
[330023943,1718947839824,-500.0,0.00054794,120]
[330023944,1718947839834,-168.7532192,0.00054794,120]
[330023945,1718947839844,-500.0,0.00054794,120]
[330023947,1718947839854,-587.51,0.00054794,120]
[330023948,1718947839863,-500.0,0.00054794,120]
[330023950,1718947839874,-500.58414353,0.00054794,120]
[330023952,1718947839885,-500.0,0.00054794,120]
[330023953,1718947839895,-847.8,0.00054794,120]
[330023954,1718947839905,-508.20043892,0.00054794,120]
[330023955,1718947839915,-614.86,0.00054794,120]
[330023956,1718947839924,-559.84,0.00054794,120]
[330023957,1718947839934,-500.0,0.00054794,120]
[330023959,1718947839944,-500.0,0.00054794,120]
[330023961,1718947839955,-500.0,0.00054794,120]
[330023963,1718947839967,-500.0,0.00054794,120]
[330023965,1718947839976,-500.0,0.00054794,120]
[330023967,1718947839986,-500.0,0.00054794,120]
[330023968,1718947839995,-699.32,0.00054794,120]
[330023969,1718947840006,-648.69,0.00054794,120]
[330023970,1718947840015,-500.0,0.00054794,120]
[330023971,1718947840025,-1769.26,0.00054794,120]
[330023972,1718947840034,-500.0,0.00054794,120]
[330023973,1718947840044,-1097.3,0.00054794,120]
[330023974,1718947840055,-2089.94,0.00054794,120]
[330023975,1718947840065,-500.0,0.00054794,120]
[330023976,1718947840076,-500.0,0.00054794,120]
[330023977,1718947840085,-500.0,0.00054794,120]
[330023978,1718947840095,-1186.67,0.00054794,120]
[330023979,1718947840105,-688.55,0.00054794,120]
[330023980,1718947840115,-502.92188098,0.00054794,120]
[330023982,1718947840125,-509.95692701,0.00054794,120]
[330023983,1718947840135,-348.82039103,0.00054794,120]
[330023984,1718947840146,-500.0,0.00054794,120]
[330023985,1718947840157,-500.0,0.00054794,120]
[330023987,1718947840167,-584.99134489,0.00054794,120]
[330023988,1718947840176,-500.0,0.00054794,120]
[330023989,1718947840187,-500.0,0.00054794,7]
[330023990,1718947840197,-511.71485958,0.00054794,120]
[330023991,1718947840207,-500.0,0.00054794,120]
[330023992,1718947840216,-500.0,0.00054794,120]
[330023993,1718947840226,-800.88,0.00054794,120]
[330023994,1718947840237,-500.0,0.00054794,120]
[330023995,1718947840247,-500.0,0.00054794,120]
[330023996,1718947840256,-500.0,0.00054794,120]
[330023997,1718947840266,-500.0,0.00054794,60]
[330023998,1718947840275,-1279.23,0.00054794,120]
[330023999,1718947840286,-250.0,0.00054794,120]
[330024000,1718947840295,-500.0,0.00054794,120]
[330024001,1718947840305,-512.73563061,0.00054794,120]
[330024002,1718947840315,-500.0,0.00054794,120]
[330024003,1718947840324,-500.0,0.00054794,120]
[330024004,1718947840333,-500.0,0.00054794,120]
[330024005,1718947840343,-425.20666,0.00054794,120]
[330024006,1718947840353,-500.0,0.00054794,120]
[330024007,1718947840363,-500.0,0.00054794,120]
[330024008,1718947840374,-500.0,0.00054794,120]
[330024009,1718947840383,-504.07168863,0.00054794,120]
[330024010,1718947840394,-5397.17,0.00054794,120]
[330024011,1718947840404,-1442.05,0.00054794,120]
[330024012,1718947840414,-500.0,0.00054794,120]
[330024013,1718947840424,-498.0,0.00054794,120]
[330024014,1718947840434,-500.0,0.00054794,2]
[330024015,1718947840444,-523.27,0.00054794,120]
[330024016,1718947840454,-1509.9,0.00054794,120]
[330024017,1718947840464,-2529.24,0.00054794,120]
[330024018,1718947840475,-500.0,0.00054794,120]
[330024019,1718947840485,-562.7,0.00054794,120]
[330024020,1718947840495,-1564.84,0.00054794,120]
[330024021,1718947840504,-764.22,0.00054794,120]
[330024022,1718947840514,-500.0,0.00054794,120]
[330024023,1718947840524,-500.0,0.00054794,120]
[330024024,1718947840534,-500.0,0.00054794,120]
[330024025,1718947840544,-13978.9,0.00054794,120]
[330024026,1718947840554,-1145.07,0.00054794,120]
[330024027,1718947840564,-587.68,0.00054794,120]
[330024028,1718947840574,-500.0,0.00054794,120]
[330024029,1718947840583,-526.07248812,0.00054794,120]
[330024030,1718947840593,-996.61,0.00054794,120]
[330024032,1718947840603,-500.0,0.00054794,120]
[330024034,1718947840614,-500.0,0.00054794,120]
[330024036,1718947840624,-500.0,0.00054794,120]
[330024038,1718947840633,-400.86417124,0.00054794,120]
[330024040,1718947840644,-500.0,0.00054794,120]
[330024041,1718947840653,-5924.79,0.00054794,120]
[330024043,1718947840664,-500.0,0.00054794,120]
[330024045,1718947840674,-500.0,0.00054794,120]
[330024047,1718947840684,-500.0,0.00054794,120]
[330024049,1718947840694,-500.0,0.00054794,120]
[330024050,1718947840704,-502.2929617,0.00054794,120]
[330024051,1718947840714,-37229.89,0.00054794,120]
[330024052,1718947840724,-513.1830232,0.00054794,120]
[330024053,1718947840734,-500.0,0.00054794,120]
[330024054,1718947840744,-1445.42,0.00054794,120]
[330024055,1718947840753,-1584.48,0.00054794,120]
[330024056,1718947840764,-770.37,0.00054794,120]
[330024057,1718947840774,-500.0,0.00054794,90]
[330024058,1718947840783,-1840.81,0.00054794,120]
[330024059,1718947840793,-4277.87,0.00054794,21]
[330024060,1718947840802,-2437.2,0.00054794,120]
[330024061,1718947840811,-441.84104584,0.00054794,120]
[330024062,1718947840821,-2594.57,0.00054794,120]
[330024063,1718947840830,-515.95,0.00054794,120]
[330024064,1718947840839,-8443.47,0.00054794,120]
[330024065,1718947840848,-500.0,0.00054794,120]
[330024066,1718947840857,-500.0,0.00054794,120]
[330024067,1718947840867,-633.35,0.00054794,120]
[330024068,1718947840879,-727.32,0.00054794,120]
[330024069,1718947840889,-7118.59,0.00054794,120]
[330024070,1718947840901,-500.0,0.00054794,120]
[330024071,1718947840911,-516.68145026,0.00054794,120]
[330024072,1718947840921,-1212.88,0.00054794,120]
[330024073,1718947840932,-500.0,0.00054794,120]
[330024074,1718947840942,-1079.44,0.00054794,120]
[330024075,1718947840951,-1745.42,0.00054794,120]
[330024077,1718947840965,-516.99,0.00054794,120]
[330024079,1718947840975,-500.0,0.00054794,120]
[330024081,1718947840984,-1460.62,0.00054794,120]
[330024082,1718947840994,-500.0,0.00054794,120]
[330024083,1718947841004,-648.97,0.00054794,120]
[330024084,1718947841014,-500.82785831,0.00054794,120]
[330024085,1718947841023,-500.0,0.00054794,120]
[330024086,1718947841032,-500.0,0.00054794,120]
[330024087,1718947841041,-524.0353571,0.00054794,120]
[330024088,1718947841051,-564.98,0.00054794,120]
[330024089,1718947841060,-548.06124739,0.00054794,120]
[330024091,1718947841070,-500.0,0.00054794,120]
[330024093,1718947841080,-792.3,0.00054794,120]
[330024095,1718947841089,-500.0,0.00054794,120]
[330024097,1718947841099,-1109.07,0.00054794,120]
[330024098,1718947841109,-500.0,0.00054794,120]
[330024100,1718947841118,-3749.36,0.00054794,120]
[330024102,1718947841127,-325.08468371,0.00054794,120]
[330024103,1718947841137,-887.85,0.00054794,120]
[330024104,1718947841147,-1863.52,0.00054794,120]
[330024105,1718947841156,-500.0,0.00054794,120]
[330024106,1718947841165,-2401.48,0.00054794,120]
[330024107,1718947841175,-602.28,0.00054794,120]
[330024108,1718947841184,-506.57089271,0.00054794,120]
[330024109,1718947841194,-1953.37,0.00054794,120]
[330024110,1718947841205,-500.0,0.00054794,120]
[330024111,1718947841215,-532.14,0.00054794,120]
[330024112,1718947841224,-701.02,0.00054794,120]
[330024113,1718947841233,-1232.43,0.00054794,120]
[330024114,1718947841243,-508.77880017,0.00054794,120]
[330024115,1718947841252,-549.01,0.00054794,120]
[330024116,1718947841262,-500.0,0.00054794,120]
[330024117,1718947841271,-589.91,0.00054794,120]
[330024118,1718947841281,-2174.92,0.00054794,120]
[330024119,1718947841290,-3000.0,0.00054794,120]
[330024121,1718947841300,-876.24,0.00054794,120]
[330024123,1718947841310,-1691.5,0.00054794,120]
[330024125,1718947841319,-1691.5,0.00054794,120]
[330024127,1718947841329,-1691.5,0.00054794,120]
[330024128,1718947841339,-1691.5,0.00054794,120]
[330024130,1718947841348,-1379.43491669,0.00054794,120]
[330024133,1718947841364,-312.06508331,0.00054794,120]
[330024134,1718947841374,-47.91491669,0.00054794,120]
[330024135,1718947841385,-1643.58508331,0.00054794,120]
[330024136,1718947841397,-500.0,0.00054794,120]
[330024137,1718947841406,-687.91,0.00054794,120]
[330024138,1718947841415,-687.91,0.00054794,120]
[330024139,1718947841427,-687.91,0.00054794,120]
[330024140,1718947841436,-687.91,0.00054794,120]
[330024141,1718947841445,-222.10753222,0.00054794,120]
[330024142,1718947841630,-465.80246778,0.00054794,120]
[330024143,1718947841640,-687.91,0.00054794,120]
[330024144,1718947841652,-687.91,0.00054794,120]
[330024145,1718947841662,-1783.79,0.00054794,120]
[330024146,1718947841671,-398.54871504,0.00054794,120]
[330024147,1718947842149,-101.45128496,0.00054794,120]
[330024148,1718947842160,-500.0,0.00054794,120]
[330024149,1718947842170,-1691.5,0.00054874,120]
[330024150,1718947842179,-687.91,0.00054874,120]
[330024151,1718947842188,-11040.89436568,0.00054875,120]
[330024173,1718947843842,-0.00241727,0.00054784,3]
[330024174,1718947843855,-1270.48758273,0.00054784,3]
[330024175,1718947843865,-500.0,0.00054794,60]
[330024176,1718947843875,-4813.07552583,0.00054875,120]
[330024191,1718947846663,-419.91638207,0.00054794,120]
[330024192,1718947897602,5000.0,0.00043,4]
[330024199,1718948237597,10731.78672007,0.00025,60]
[330024201,1718948738148,-166.2,0.00021096,2]
[330024202,1718948738171,-233.57538037,0.00025089,2]
[330024203,1718948813101,-192.83075513,0.00025089,2]
[330024204,1718948830142,-160.0,0.00025089,2]
[330024205,1718948830162,-16741.75426128,0.0002509,2]
[330024206,1718948845101,-21.10850196,0.0002509,2]
[330024207,1718948845237,-417.77270378,0.00027245,2]
[330024208,1718948946092,-150.0,0.0002299,2]
[330024209,1718948946113,-18283.67132032,0.00027245,2]
[330024210,1718948946134,-188.05882165,0.00027379,2]
[330024211,1718948946154,-169.3014,0.00027579,2]
[330024212,1718948946173,-155.58011299,0.00030412,4]
[330024213,1718948946192,-280.0,0.00040666,120]
[330024214,1718948946211,-200.0,0.000415,120]
[330024215,1718948946232,-220.0,0.00045,120]
[330024216,1718948946256,-200.0,0.000475,120]
[330024217,1718948946276,-5000.0,0.000489,4]
[330024218,1718948955947,1086.42641389,0.00030902,2]
[330024263,1718949032689,-706.99,0.00031002,120]
[330024270,1718949032747,-337.93781919,0.00031002,120]
[330024443,1718949038808,-307.02040166,0.00031002,120]
[330024444,1718949038818,-45036.21739155,0.00031002,7]
[330024445,1718949038827,-5268.26750109,0.00031002,2]
[330024446,1718949038843,-1801.07269932,0.00031002,2]
[330024447,1718949038852,-200.0,0.0005,120]
[330024448,1718949038862,-10474.59,0.00052328,120]
[330024449,1718949038872,-206.95,0.00052849,30]
[330024450,1718949038881,-172.45,0.00052849,30]
[330024451,1718949038891,-25800.0,0.00052859,120]
[330024452,1718949038900,-862.3,0.00053378,30]
[330024453,1718949038910,-600.0,0.00053388,120]
[330024454,1718949038920,-590.58,0.00053698,30]
[330024455,1718949038930,-1058.74,0.00053849,3]
[330024456,1718949038939,-882.28,0.00053849,3]
[330024457,1718949038948,-232.4,0.00053855,90]
[330024458,1718949038958,-15800.0,0.00053859,120]
[330024459,1718949038967,-188.05882165,0.00053941,2]
[330024460,1718949038977,-500.0,0.00054041,120]
[330024461,1718949038986,-500.0,0.00054041,120]
[330024462,1718949038995,-335.3,0.0005413,90]
[330024463,1718949039004,-500.0,0.00054246,120]
[330024464,1718949039014,-1581.77175318,0.00054299,40]
[330024465,1718949039023,-8258.195999,0.000543,120]
[330024466,1718949039033,-335.3,0.00054404,90]
[330024467,1718949039043,-320.5229805,0.00054438,30]
[330024468,1718949039052,-421.18990875,0.00054478,2]
[330024469,1718949039063,-156.008132,0.00054657,4]
[330024470,1718949039073,-335.3,0.00054679,90]
[330024471,1718949039082,-2773.0,0.000547,7]
[330024472,1718949039094,-500.0,0.00054793,20]
[330024473,1718949039104,-676.15,0.00054793,120]
[330024474,1718949039114,-676.15,0.00054793,120]
[330024475,1718949039123,-676.15,0.00054793,120]
[330024476,1718949039133,-676.15,0.00054793,120]
[330024477,1718949039143,-505.63163605,0.00054794,120]
[330024478,1718949039153,-709.81,0.00054794,120]
[330024479,1718949039163,-500.0,0.00054794,120]
[330024480,1718949039172,-502.60259629,0.00054794,120]
[330024481,1718949039183,-500.0,0.00054794,120]
[330024482,1718949039192,-500.0,0.00054794,120]
[330024483,1718949039203,-506.04860644,0.00054794,120]
[330024484,1718949039212,-518.95929642,0.00054794,120]
[330024485,1718949039222,-505.12316328,0.00054794,120]
[330024486,1718949039232,-504.38301024,0.00054794,120]
[330024487,1718949039242,-500.0,0.00054794,120]
[330024488,1718949039253,-500.0,0.00054794,120]
[330024489,1718949039262,-511.67871819,0.00054794,120]
[330024490,1718949039274,-505.1641777,0.00054794,120]
[330024491,1718949039286,-500.0,0.00054794,120]
[330024492,1718949039296,-500.0,0.00054794,120]
[330024493,1718949039305,-500.0,0.00054794,120]
[330024494,1718949039317,-500.0,0.00054794,120]
[330024495,1718949039326,-502.5400818,0.00054794,120]
[330024496,1718949039336,-500.0,0.00054794,120]
[330024497,1718949039347,-500.0,0.00054794,120]
[330024498,1718949039355,-500.0,0.00054794,120]
[330024499,1718949039367,-882.43,0.00054794,120]
[330024500,1718949039378,-2000.0,0.00054794,5]
[330024501,1718949039388,-507.42140896,0.00054794,120]
[330024502,1718949039398,-151.22532682,0.00054794,120]
[330024503,1718949039407,-507.62536049,0.00054794,120]
[330024504,1718949039417,-454.10900524,0.00054794,120]
[330024505,1718949039427,-500.0,0.00054794,120]
[330024506,1718949039437,-500.0,0.00054794,120]
[330024507,1718949039447,-190.159889,0.00054794,120]
[330024508,1718949039457,-508.03816324,0.00054794,120]
[330024509,1718949039467,-503.02679361,0.00054794,120]
[330024510,1718949039477,-502.7601615,0.00054794,120]
[330024511,1718949039486,-500.0,0.00054794,120]
[330024512,1718949039495,-500.0,0.00054794,120]
[330024513,1718949039505,-505.12211671,0.00054794,120]
[330024514,1718949039514,-509.22288165,0.00054794,120]
[330024515,1718949039524,-500.0,0.00054794,120]
[330024516,1718949039534,-500.0,0.00054794,120]
[330024517,1718949039544,-500.0,0.00054794,120]
[330024518,1718949039554,-1047.3591004,0.00054794,120]
[330024519,1718949039565,-500.0,0.00054794,120]
[330024520,1718949039575,-500.0,0.00054794,120]
[330024521,1718949039585,-500.0,0.00054794,120]
[330024522,1718949039597,-500.0,0.00054794,120]
[330024523,1718949039607,-500.0,0.00054794,120]
[330024524,1718949039617,-709.27,0.00054794,120]
[330024525,1718949039627,-500.0,0.00054794,120]
[330024526,1718949039637,-500.0,0.00054794,120]
[330024527,1718949039647,-500.0,0.00054794,120]
[330024528,1718949039657,-1181.08,0.00054794,120]
[330024529,1718949039667,-500.0,0.00054794,120]
[330024530,1718949039676,-541.87432306,0.00054794,120]
[330024531,1718949039686,-176.49226442,0.00054794,120]
[330024532,1718949039696,-500.0,0.00054794,120]
[330024533,1718949039705,-432.96398438,0.00054794,120]
[330024534,1718949039715,-504.59146598,0.00054794,120]
[330024535,1718949039725,-500.0,0.00054794,120]
[330024536,1718949039735,-500.0,0.00054794,120]
[330024537,1718949039745,-500.0,0.00054794,120]
[330024538,1718949039755,-594.17,0.00054794,120]
[330024539,1718949039766,-1000.0,0.00054794,120]
[330024540,1718949039776,-500.0,0.00054794,120]
[330024541,1718949039787,-500.0,0.00054794,120]
[330024542,1718949039797,-500.0,0.00054794,120]